bitfinex-derivatives/quotes_BTCF0:USTF0_20250812
["timestamp","ask_amount","ask_price","bid_price","bid_amount"]
[1754992462610,0.67808799,118590.0,118580.0,0.50998485]
[1754992462800,0.98221004,118590.0,118580.0,0.50998485]
[1754992465203,0.98221004,118590.0,118580.0,0.48618485]
[1754992466903,0.98221004,118590.0,118580.0,0.51102485]
[1754992468110,0.44485239,118590.0,118580.0,0.48618485]
[1754992468309,0.79515444,118590.0,118580.0,0.51102485]
[1754992468515,0.49103239,118590.0,118580.0,0.51102485]
[1754992468814,0.79515444,118590.0,118580.0,0.51102485]
[1754992475721,0.79515444,118590.0,118580.0,0.48618485]
[1754992476719,1.56399444,118590.0,118580.0,0.48618485]
[1754992477919,1.56399444,118590.0,118580.0,0.1820628]
[1754992478224,1.56399444,118590.0,118580.0,0.48618485]
[1754992480326,1.56399444,118590.0,118580.0,0.1820628]
[1754992480725,1.56399444,118590.0,118580.0,0.48618485]
[1754992481727,1.56399444,118590.0,118580.0,0.1820628]
[1754992482228,1.56399444,118590.0,118580.0,0.1677828]
[1754992482526,1.25987239,118590.0,118580.0,0.1677828]
[1754992482729,1.56399444,118590.0,118580.0,0.1677828]
[1754992483027,1.56399444,118590.0,118580.0,0.1455628]
[1754992483231,3.06399444,118590.0,118580.0,0.1455628]
[1754992483527,2.92399444,118590.0,118580.0,0.1455628]
[1754992484027,3.22811649,118590.0,118580.0,0.0854328]
[1754992485630,3.22811649,118590.0,118580.0,0.0011]
[1754992488330,3.22811649,118590.0,118580.0,0.0854328]
[1754992488531,2.92399444,118590.0,118580.0,0.0854328]
[1754992493833,3.06399444,118590.0,118580.0,0.0854328]
[1754992504441,3.36811649,118590.0,118580.0,0.0011]
[1754992505742,0.0843328,118580.0,118570.0,0.1686794]
[1754992505944,0.8106569,118580.0,118570.0,0.1686794]
[1754992506432,0.8106569,118580.0,118570.0,0.0843397]
[1754992507239,0.8116569,118580.0,118570.0,0.0853397]
[1754992508133,0.8116569,118580.0,118570.0,0.0863397]
[1754992508134,0.2034128,118580.0,118570.0,0.0863397]
[1754992508333,0.8116569,118580.0,118570.0,0.0863397]
[1754992510342,0.9402719,118580.0,118570.0,0.0863397]
[1754992512442,0.9402719,118580.0,118570.0,0.39046175]
[1754992512645,0.9402719,118580.0,118570.0,0.0863397]
[1754992520351,0.3320278,118580.0,118570.0,0.0863397]
[1754992520646,0.9402719,118580.0,118570.0,0.0863397]
[1754992520840,0.9402719,118580.0,118570.0,0.39046175]
[1754992522442,0.9402719,118580.0,118570.0,0.002]
[1754992527253,0.0843542,118550.0,118540.0,0.34579255]
[1754992527437,0.43449625,118550.0,118540.0,1.05191665]
[1754992527641,0.5234835,118550.0,118540.0,0.69104295]
[1754992527845,0.5234835,118550.0,118540.0,0.74791349]
[1754992528043,0.5234835,118550.0,118540.0,0.73944295]
[1754992528944,0.5244835,118550.0,118540.0,0.74344295]
[1754992529644,0.5254835,118550.0,118540.0,0.74744295]
[1754992530247,0.6540985,118550.0,118540.0,0.4433209]
[1754992530439,0.6540985,118550.0,118540.0,0.74744295]
[1754992531255,0.6540985,118550.0,118540.0,0.3612609]
[1754992531546,0.0843903,118510.0,118500.0,0.04145]
[1754992531751,0.47197235,118510.0,118500.0,0.08985]
[1754992531947,0.50437235,118510.0,118500.0,0.47836185]
[1754992532251,0.2002503,118510.0,118500.0,0.7824839]
[1754992532641,0.2002503,118510.0,118500.0,0.58045194]
[1754992532846,0.2002503,118510.0,118500.0,0.59196194]
[1754992533447,0.02388,118510.0,118500.0,0.59196194]
[1754992533646,0.3749677,118520.0,118510.0,0.0843827]
[1754992533853,0.4533877,118520.0,118510.0,0.59195484]
[1754992534653,0.4533877,118520.0,118510.0,0.1857427]
[1754992535244,0.5820027,118520.0,118510.0,0.1857427]
[1754992535651,0.5840027,118520.0,118510.0,0.1857427]
[1754992535852,0.4152384,118520.0,118510.0,0.1857427]
[1754992536051,0.3308567,118520.0,118510.0,0.59195484]
[1754992537354,0.3308567,118520.0,118510.0,0.59295484]
[1754992538260,0.3308567,118520.0,118510.0,0.1752327]
[1754992538759,0.73706884,118520.0,118510.0,0.1752327]
[1754992538959,0.3308567,118520.0,118510.0,0.1752327]
[1754992547665,0.73706884,118520.0,118510.0,0.0853827]
[1754992547864,0.73706884,118520.0,118510.0,0.1687627]
[1754992548059,0.73706884,118520.0,118510.0,0.1752327]
[1754992550266,0.3308567,118520.0,118510.0,0.1752327]
[1754992550466,0.73706884,118520.0,118510.0,0.1752327]
[1754992552673,0.9401632,118520.0,118510.0,0.47988595]
[1754992553963,0.9401632,118520.0,118510.0,0.1752327]
[1754992554169,0.9401632,118520.0,118510.0,0.47988595]
[1754992556272,0.9401632,118520.0,118510.0,0.1752327]
[1754992556773,0.9401632,118520.0,118510.0,0.47988595]
[1754992557160,0.9401632,118520.0,118510.0,0.1752327]
[1754992557364,0.9401632,118520.0,118510.0,0.47988595]
[1754992557569,0.9401632,118520.0,118510.0,0.1752327]
[1754992557765,0.9401632,118520.0,118510.0,0.47988595]
[1754992557962,0.3308567,118520.0,118510.0,0.1752327]
[1754992558170,0.9401632,118520.0,118510.0,0.0853827]
[1754992558369,0.9401632,118520.0,118510.0,0.39003595]
[1754992558973,0.9401632,118520.0,118510.0,0.42432595]
[1754992559376,0.3308567,118520.0,118510.0,0.1196727]
[1754992559574,0.9401632,118520.0,118510.0,0.42432595]
[1754992559774,0.9401632,118520.0,118510.0,0.1196727]
[1754992560071,0.9401632,118520.0,118510.0,0.42432595]
[1754992560574,0.9401632,118520.0,118510.0,0.1196727]
[1754992560774,0.9401632,118520.0,118510.0,0.42432595]
[1754992561866,0.9401632,118520.0,118510.0,0.43079595]
[1754992562273,0.9401632,118520.0,118510.0,0.47749595]
[1754992562772,0.9401632,118520.0,118510.0,0.0853827]
[1754992565683,0.3308567,118520.0,118510.0,0.0853827]
[1754992565886,0.9401632,118520.0,118510.0,0.0853827]
[1754992566080,0.9401632,118520.0,118510.0,0.1196727]
[1754992566281,1.7089632,118520.0,118510.0,0.1728427]
[1754992566486,1.7089632,118520.0,118510.0,0.47749595]
[1754992566676,1.7089632,118520.0,118510.0,0.1728427]
[1754992566980,1.7089632,118520.0,118510.0,0.47749595]
[1754992568176,1.40430995,118520.0,118510.0,0.47749595]
[1754992568378,1.40430995,118520.0,118510.0,0.1728427]
[1754992568881,1.7089632,118520.0,118510.0,0.1728427]
[1754992569082,1.7089632,118520.0,118510.0,0.47749595]
[1754992569681,1.0996567,118520.0,118510.0,0.47749595]
[1754992569874,1.40430995,118520.0,118510.0,0.47749595]
[1754992570071,1.7089632,118520.0,118510.0,0.47749595]
[1754992570272,0.9401632,118520.0,118510.0,0.47749595]
[1754992570883,0.9401632,118520.0,118510.0,0.1728427]
[1754992571083,0.9401632,118520.0,118510.0,0.47749595]
[1754992571583,0.9401632,118520.0,118510.0,0.1728427]
[1754992571783,0.9401632,118520.0,118510.0,0.47102595]
[1754992571984,0.9401632,118520.0,118510.0,0.44602595]
[1754992572186,0.9401632,118520.0,118510.0,0.39003595]
[1754992573687,0.9401632,118520.0,118510.0,0.0853827]
[1754992573889,0.9401632,118520.0,118510.0,0.39003595]
[1754992574085,0.9401632,118520.0,118510.0,0.42432595]
[1754992574887,0.9401632,118520.0,118510.0,0.45249595]
[1754992575482,0.9401632,118520.0,118510.0,0.1478427]
[1754992575682,0.9401632,118520.0,118510.0,0.45249595]
[1754992575888,0.9401632,118520.0,118510.0,0.1478427]
[1754992576290,0.9401632,118520.0,118510.0,0.42432595]
[1754992576588,0.9401632,118520.0,118510.0,0.0853827]
[1754992578992,0.3308567,118520.0,118510.0,0.0853827]
[1754992579191,0.9401632,118520.0,118510.0,0.0853827]
[1754992579587,0.9401632,118520.0,118510.0,0.39003595]
[1754992579788,0.9401632,118520.0,118510.0,0.0853827]
[1754992581184,0.3308567,118520.0,118510.0,0.0853827]
[1754992581388,0.9401632,118520.0,118510.0,0.0853827]
[1754992581790,0.9401632,118520.0,118510.0,0.39003595]
[1754992582398,0.9401632,118520.0,118510.0,0.0853827]
[1754992582589,0.9401632,118520.0,118510.0,0.39003595]
[1754992583488,0.9401632,118520.0,118510.0,0.42154595]
[1754992583995,0.9401632,118520.0,118510.0,0.1168927]
[1754992584196,0.9401632,118520.0,118510.0,0.42154595]
[1754992584491,0.9401632,118520.0,118510.0,0.1168927]
[1754992584695,0.9401632,118520.0,118510.0,0.42154595]
[1754992585790,0.9401632,118520.0,118510.0,0.44987595]
[1754992586096,0.3308567,118520.0,118510.0,0.1648827]
[1754992586297,0.63550995,118520.0,118510.0,0.48751595]
[1754992586600,0.63350995,118520.0,118510.0,0.48751595]
[1754992586896,0.63650995,118520.0,118510.0,0.48751595]
[1754992587197,0.63750995,118520.0,118510.0,0.48751595]
[1754992587697,0.63750995,118520.0,118510.0,0.47600595]
[1754992588492,0.248475,118520.0,118510.0,0.47600595]
[1754992588698,0.202515,118520.0,118510.0,1.5610492]
[1754992589495,0.249465,118520.0,118510.0,1.5610492]
[1754992590994,0.249465,118520.0,118510.0,0.9517427]
[1754992591198,0.249465,118520.0,118510.0,1.25639595]
[1754992594200,0.249465,118520.0,118510.0,0.9517427]
[1754992594400,0.249465,118520.0,118510.0,1.25639595]
[1754992594598,0.249465,118520.0,118510.0,0.9517427]
[1754992594795,0.249465,118520.0,118510.0,1.35785657]
[1754992595800,0.249465,118520.0,118510.0,0.9517427]
[1754992596003,0.249465,118520.0,118510.0,1.35785657]
[1754992597803,0.216365,118520.0,118510.0,1.35785657]
[1754992598901,0.216365,118520.0,118510.0,0.9517427]
[1754992599101,0.216365,118520.0,118510.0,1.35785657]
[1754992599497,0.156495,118520.0,118510.0,1.35785657]
[1754992601502,0.156495,118520.0,118510.0,0.9517427]
[1754992601709,0.250665,118520.0,118510.0,1.35785657]
[1754992603111,0.250665,118520.0,118510.0,1.35789982]
[1754992604406,0.250665,118520.0,118510.0,0.95178595]
[1754992604607,0.250665,118520.0,118510.0,1.35789982]
[1754992605306,0.250665,118520.0,118510.0,0.95178595]
[1754992605502,0.250665,118520.0,118510.0,1.35789982]
[1754992606108,0.3350404,118520.0,118510.0,1.35789982]
[1754992606309,0.74115427,118520.0,118510.0,0.94027595]
[1754992606606,0.3350404,118520.0,118510.0,0.17139595]
[1754992607597,0.3350404,118520.0,118510.0,0.57750982]
[1754992608611,0.74115427,118520.0,118510.0,0.08542595]
[1754992609010,0.74115427,118520.0,118510.0,0.08542575]
[1754992615518,0.74978776,118520.0,118510.0,0.08542575]
[1754992618223,0.74978606,118520.0,118510.0,0.08542575]
[1754992618426,0.74115427,118520.0,118510.0,0.08542575]
[1754992622725,0.94443872,118520.0,118510.0,0.08542575]
[1754992623930,0.94443872,118520.0,118510.0,0.11815575]
[1754992624432,0.94443872,118520.0,118510.0,0.08542575]
[1754992627429,0.3350404,118520.0,118510.0,0.08542575]
[1754992627631,0.94443872,118520.0,118510.0,0.08542575]
[1754992628835,0.94443872,118520.0,118510.0,0.11815575]
[1754992629225,0.94443872,118520.0,118510.0,0.08542575]
[1754992631436,0.3350404,118520.0,118510.0,0.08542575]
[1754992631630,0.94443872,118520.0,118510.0,0.08542575]
[1754992633832,0.3350404,118520.0,118510.0,0.08542575]
[1754992634138,0.94443872,118520.0,118510.0,0.08542575]
[1754992638426,0.3350404,118520.0,118510.0,0.39012491]
[1754992638628,0.94443872,118520.0,118510.0,0.08542575]
[1754992643140,0.3350404,118520.0,118510.0,0.08542575]
[1754992643341,0.94443872,118520.0,118510.0,0.08542575]
[1754992645232,0.3350404,118520.0,118510.0,0.08542575]
[1754992645542,0.94443872,118520.0,118510.0,0.12552575]
[1754992645842,0.94443872,118520.0,118510.0,0.42375491]
[1754992646440,0.94443872,118520.0,118510.0,0.11905575]
[1754992646740,0.3350404,118520.0,118510.0,0.08542575]
[1754992646939,0.94443872,118520.0,118510.0,0.08542575]
[1754992647342,0.3350404,118520.0,118510.0,0.08542575]
[1754992647545,0.94443872,118520.0,118510.0,0.08542575]
[1754992649149,1.08453872,118520.0,118510.0,0.08542575]
[1754992649550,0.3350404,118520.0,118510.0,0.08542575]
[1754992649850,0.94443872,118520.0,118510.0,0.08542575]
[1754992651647,0.3350404,118520.0,118510.0,0.08542575]
[1754992651950,0.94443872,118520.0,118510.0,0.08542575]
[1754992658056,0.3350404,118520.0,118510.0,0.08542575]
[1754992658355,0.94443872,118520.0,118510.0,0.08542575]
[1754992661458,0.3350404,118520.0,118510.0,0.08542575]
[1754992661657,0.94443872,118520.0,118510.0,0.08542575]
[1754992663661,0.3350404,118520.0,118510.0,0.08542575]
[1754992663861,0.94443872,118520.0,118510.0,0.08542575]
[1754992673267,0.3350404,118520.0,118510.0,0.08542575]
[1754992673565,0.94443872,118520.0,118510.0,0.08542575]
[1754992678158,0.94443872,118520.0,118510.0,0.00104325]
[1754992678360,1.24913788,118520.0,118510.0,0.08542535]
[1754992678557,0.94443872,118520.0,118510.0,0.08542535]
[1754992678965,0.94443872,118520.0,118510.0,0.00104325]
[1754992679465,1.08453872,118520.0,118510.0,0.00104325]
[1754992679969,0.94443872,118520.0,118510.0,0.00104325]
[1754992681371,0.94443872,118520.0,118510.0,0.001]
[1754992683470,0.94443872,118520.0,118510.0,0.0853823]
[1754992683769,0.94443872,118520.0,118510.0,0.00104325]
[1754992685771,0.94443872,118520.0,118510.0,0.08542515]
[1754992686873,0.94443872,118520.0,118500.0,0.2531647]
[1754992686874,0.084396,118490.0,118480.0,0.2532018]
[1754992687059,1.15827255,118490.0,118480.0,0.1180997]
[1754992687266,1.76767087,118490.0,118480.0,0.1180997]
[1754992687469,1.46297171,118490.0,118480.0,0.1180997]
[1754992687669,0.0844102,118470.0,118460.0,0.01716309]
[1754992687873,1.58274852,118470.0,118460.0,0.10158049]
[1754992688272,0.9733502,118470.0,118460.0,0.48565965]
[1754992688475,0.35667014,118480.0,118460.0,1.54362817]
[1754992688476,0.01903944,118480.0,118460.0,1.54362817]
[1754992688767,0.001,118490.0,118470.0,0.304906]
[1754992688973,0.01082,118490.0,118480.0,0.79116142]
[1754992689166,0.57206776,118500.0,118490.0,0.084396]
[1754992689365,0.87264142,118500.0,118490.0,0.170246]
[1754992689567,0.2632431,118500.0,118490.0,0.170246]
[1754992689774,0.56794226,118500.0,118490.0,0.170246]
[1754992690074,0.59218226,118500.0,118490.0,0.170246]
[1754992690374,0.72079726,118500.0,118490.0,0.170246]
[1754992690570,1.02549642,118500.0,118490.0,0.170246]
[1754992691282,0.4160981,118500.0,118490.0,0.47494516]
[1754992691466,0.70531252,118500.0,118490.0,0.47494516]
[1754992691773,0.70931252,118500.0,118490.0,0.47494516]
[1754992692163,0.40461336,118500.0,118490.0,0.47594516]
[1754992692371,0.40561336,118500.0,118490.0,0.47594516]
[1754992692567,0.27438286,118500.0,118490.0,0.78064432]
[1754992692770,0.27438286,118500.0,118490.0,0.79215432]
[1754992692980,0.205475,118500.0,118490.0,0.48745516]
[1754992693571,0.252315,118500.0,118490.0,0.48745516]
[1754992694772,0.252315,118500.0,118490.0,0.58899593]
[1754992695172,0.133615,118500.0,118490.0,1.35995593]
[1754992695377,0.157855,118500.0,118490.0,1.35995593]
[1754992695971,0.133615,118500.0,118490.0,1.35995593]
[1754992696174,0.133615,118500.0,118490.0,1.52873993]
[1754992696679,0.133615,118500.0,118490.0,1.35995593]
[1754992697378,0.133615,118500.0,118490.0,1.52873993]
[1754992700980,0.156465,118500.0,118490.0,1.52873993]
[1754992701780,0.156465,118500.0,118490.0,1.35995593]
[1754992702276,0.133615,118500.0,118490.0,1.35995593]
[1754992702477,0.156465,118500.0,118490.0,1.35995593]
[1754992707675,0.253495,118500.0,118490.0,0.171246]
[1754992707880,0.337884,118500.0,118490.0,0.57748593]
[1754992708084,0.253495,118500.0,118490.0,1.34848593]
[1754992708281,0.3378846,118500.0,118490.0,0.106896]
[1754992708486,0.3378846,118500.0,118490.0,0.856396]
[1754992709180,0.3378846,118500.0,118490.0,0.888896]
[1754992709585,0.3378846,118500.0,118490.0,0.917616]
[1754992709784,0.3378846,118500.0,118490.0,0.933476]
[1754992709985,0.3378846,118500.0,118490.0,0.942686]
[1754992713185,0.74412453,118500.0,118490.0,0.910106]
[1754992713490,0.3378846,118500.0,118490.0,0.911066]
[1754992713690,0.3378846,118500.0,118490.0,0.917536]
[1754992713877,0.3378846,118500.0,118490.0,0.917616]
[1754992714082,0.74412453,118500.0,118490.0,0.085396]
[1754992716086,0.75268084,118500.0,118490.0,0.085396]
[1754992716485,0.74412453,118500.0,118490.0,0.085396]
[1754992720891,0.3378846,118500.0,118490.0,0.085396]
[1754992721082,0.74412453,118500.0,118490.0,0.085396]
[1754992723491,0.74412453,118500.0,118490.0,0.001]
[1754992723894,0.74412453,118500.0,118490.0,0.085396]
[1754992724688,0.74412453,118500.0,118490.0,0.001]
[1754992725296,0.0843959,118490.0,118480.0,0.10115642]
[1754992725496,0.61051583,118490.0,118480.0,0.10115642]
[1754992726092,0.2042759,118490.0,118480.0,0.15590642]
[1754992726283,0.61051583,118490.0,118480.0,0.15590642]
[1754992726491,0.61051583,118490.0,118480.0,0.16237642]
[1754992726896,0.61351583,118490.0,118480.0,0.16337642]
[1754992727895,0.61351583,118490.0,118480.0,0.15690642]
[1754992728091,0.61351583,118490.0,118480.0,0.10215642]
[1754992728292,0.61351583,118490.0,118480.0,0.17276642]
[1754992728492,0.61351583,118490.0,118480.0,0.18844642]
[1754992728692,0.51211225,118490.0,118480.0,0.18844642]
[1754992730206,0.64072725,118490.0,118480.0,0.18844642]
[1754992731606,0.64072725,118490.0,118480.0,0.18197642]
[1754992731808,0.64072725,118490.0,118480.0,0.17276642]
[1754992732103,0.64072725,118490.0,118480.0,0.15690642]
[1754992738717,0.3358909,118490.0,118480.0,0.15690642]
[1754992739021,0.64072725,118490.0,118480.0,0.15690642]
[1754992739320,0.3358909,118490.0,118480.0,0.15690642]
[1754992739522,0.64072725,118490.0,118480.0,0.15690642]
[1754992739718,0.64072725,118490.0,118480.0,0.45454277]
[1754992739924,0.64072725,118490.0,118480.0,0.49291277]
[1754992741115,0.64072725,118490.0,118480.0,0.18807642]
[1754992741420,0.64072725,118490.0,118480.0,0.49291277]
[1754992741919,0.64072725,118490.0,118480.0,0.18807642]
[1754992742127,0.64072725,118490.0,118480.0,0.10215642]
[1754992742427,0.64072725,118490.0,118480.0,0.13405642]
[1754992742618,0.74234982,118490.0,118480.0,0.10215642]
[1754992743016,0.74234982,118490.0,118480.0,0.13405642]
[1754992743216,0.74234982,118490.0,118480.0,0.10215642]
[1754992743924,0.3358909,118490.0,118480.0,0.10215642]
[1754992744123,0.74234982,118490.0,118480.0,0.10215642]
[1754992751522,0.74234982,118490.0,118480.0,0.10215672]
[1754992751826,0.74234982,118490.0,118480.0,0.01775342]
[1754992755030,0.74234982,118490.0,118480.0,0.10215672]
[1754992763632,0.3358909,118490.0,118480.0,0.10215672]
[1754992763836,0.74234982,118490.0,118480.0,0.10215672]
[1754992764137,0.3358909,118490.0,118480.0,0.10215672]
[1754992764341,0.74234982,118490.0,118480.0,0.10215672]
[1754992764740,0.64073969,118490.0,118480.0,0.10215672]
[1754992768837,0.3358909,118490.0,118480.0,0.10215672]
[1754992769038,0.64073969,118490.0,118480.0,0.10215672]
[1754992770241,0.3358909,118490.0,118480.0,0.10215672]
[1754992770437,0.64073969,118490.0,118480.0,0.13655672]
[1754992770639,0.64073969,118490.0,118480.0,0.44140551]
[1754992771337,0.3358909,118490.0,118480.0,0.44140551]
[1754992771641,0.64073969,118490.0,118480.0,0.44140551]
[1754992772338,0.64073969,118490.0,118480.0,0.40700551]
[1754992772542,0.64073969,118490.0,118480.0,0.49430551]
[1754992775843,0.64073969,118490.0,118480.0,0.18945672]
[1754992776143,0.64073969,118490.0,118480.0,0.49430551]
[1754992777744,0.64073969,118490.0,118480.0,0.18945672]
[1754992778045,0.64073969,118490.0,118480.0,0.49430551]
[1754992779549,0.78083969,118490.0,118480.0,0.18945672]
[1754992779747,0.64073969,118490.0,118480.0,0.49430551]
[1754992780650,0.64073969,118490.0,118480.0,0.18945672]
[1754992781739,0.3358909,118490.0,118480.0,0.18945672]
[1754992782045,0.64073969,118490.0,118480.0,0.18945672]
[1754992782745,0.64073969,118490.0,118480.0,0.10215672]
[1754992783052,0.64073969,118490.0,118480.0,0.40700551]
[1754992783252,0.64073969,118490.0,118480.0,0.44140551]
[1754992783947,0.64073969,118490.0,118480.0,0.13655672]
[1754992784153,0.64073969,118490.0,118480.0,0.16520672]
[1754992784657,0.3358909,118490.0,118480.0,0.16520672]
[1754992784953,0.64073969,118490.0,118480.0,0.47005551]
[1754992787653,0.64073969,118490.0,118480.0,0.16520672]
[1754992788961,0.64073969,118490.0,118480.0,0.15873672]
[1754992789661,0.64073969,118490.0,118480.0,0.1198033]
[1754992789662,1.08568848,118490.0,118480.0,0.1198033]
[1754992789964,0.64073969,118490.0,118480.0,0.0854033]
[1754992790952,0.94558848,118490.0,118480.0,0.001]
[1754992791754,0.3358909,118490.0,118480.0,0.001]
[1754992791958,0.94558848,118490.0,118480.0,0.001]
[1754992793854,0.0844033,118480.0,118470.0,0.2532271]
[1754992794060,1.58213088,118480.0,118470.0,0.2532271]
[1754992795167,1.58313088,118480.0,118470.0,0.3161771]
[1754992795361,1.71174588,118480.0,118470.0,0.3097071]
[1754992795567,1.71374588,118480.0,118470.0,0.3330771]
[1754992795967,1.71374588,118480.0,118470.0,0.3266071]
[1754992796163,1.71374588,118480.0,118470.0,0.3364271]
[1754992796469,1.71374588,118480.0,118470.0,0.3428971]
[1754992796664,1.71374588,118480.0,118470.0,0.64774589]
[1754992798658,1.40889709,118480.0,118470.0,0.64774589]
[1754992799265,1.40889709,118480.0,118470.0,0.3428971]
[1754992799465,1.40889709,118480.0,118470.0,0.64774589]
[1754992800368,1.1040483,118480.0,118470.0,0.64774589]
[1754992800671,0.63933709,118480.0,118470.0,0.64774589]
[1754992801268,0.94418588,118480.0,118470.0,0.3428971]
[1754992801460,0.94418588,118480.0,118470.0,0.1708177]
[1754992802673,1.71378588,118480.0,118470.0,0.1708177]
[1754992803462,1.1040883,118480.0,118470.0,0.1708177]
[1754992803664,1.71378588,118480.0,118470.0,0.1708177]
[1754992807484,1.1040883,118480.0,118470.0,0.1708177]
[1754992807779,1.71378588,118480.0,118470.0,0.2044477]
[1754992808483,1.1040883,118480.0,118470.0,0.2044477]
[1754992808673,0.63933709,118480.0,118470.0,0.56333649]
[1754992808987,0.94418588,118480.0,118470.0,0.0864104]
[1754992811573,0.94418588,118480.0,118470.0,0.39125919]
[1754992811771,0.94418588,118480.0,118470.0,0.45320919]
[1754992812172,0.94418588,118480.0,118470.0,0.1483604]
[1754992812374,0.94418588,118480.0,118470.0,0.39125919]
[1754992812683,0.94418588,118480.0,118470.0,0.0864104]
[1754992814375,0.3344883,118480.0,118470.0,0.0864104]
[1754992814582,0.94418588,118480.0,118470.0,0.1200404]
[1754992815188,0.94418588,118480.0,118470.0,0.42488919]
[1754992816385,0.63933709,118480.0,118470.0,0.0864104]
[1754992816686,0.94418588,118480.0,118470.0,0.0864104]
[1754992816885,0.94418588,118480.0,118470.0,0.39125919]
[1754992817692,0.63933709,118480.0,118470.0,0.39125919]
[1754992819187,0.63933709,118480.0,118470.0,0.44601919]
[1754992819387,0.63933709,118480.0,118470.0,0.45248919]
[1754992819893,0.63933709,118480.0,118470.0,0.47880919]
[1754992820385,0.63933709,118480.0,118470.0,0.1739604]
[1754992820580,0.63933709,118480.0,118470.0,0.47880919]
[1754992823686,0.63933709,118480.0,118470.0,0.39125919]
[1754992824593,0.63933709,118480.0,118470.0,0.42440919]
[1754992825594,0.63933709,118480.0,118470.0,0.43087919]
[1754992825795,0.63933709,118480.0,118470.0,0.45248919]
[1754992826598,0.63933709,118480.0,118470.0,0.46902919]
[1754992826890,0.63933709,118480.0,118470.0,0.47880919]
[1754992830093,0.3344883,118480.0,118470.0,0.47880919]
[1754992830294,0.2160183,118480.0,118470.0,0.78365798]
[1754992830602,0.155115,118480.0,118470.0,0.79716798]
[1754992831295,0.155115,118480.0,118470.0,0.81444951]
[1754992837306,0.131615,118480.0,118470.0,0.81444951]
[1754992837601,0.69043199,118510.0,118500.0,0.0843891]
[1754992837800,0.73835199,118510.0,118500.0,0.47031789]
[1754992838003,0.76185199,118510.0,118500.0,0.47678789]
[1754992838500,0.67746369,118510.0,118500.0,0.47678789]
[1754992838694,0.67746369,118510.0,118500.0,0.78163668]
[1754992838898,0.68046369,118510.0,118500.0,0.78263668]
[1754992839098,0.68646369,118510.0,118500.0,0.1729391]
[1754992839304,0.3816149,118510.0,118500.0,0.1729391]
[1754992839511,0.68646369,118510.0,118500.0,0.78263668]
[1754992839899,0.3816149,118510.0,118500.0,0.78263668]
[1754992840094,0.68646369,118510.0,118500.0,0.47778789]
[1754992840703,0.68646369,118510.0,118500.0,0.78263668]
[1754992840704,0.81507869,118510.0,118500.0,0.78263668]
[1754992841202,0.4258416,118510.0,118500.0,0.78263668]
[1754992841407,0.4258416,118510.0,118500.0,0.1729391]
[1754992841609,0.4258416,118510.0,118500.0,0.79107754]
[1754992841810,0.3414469,118510.0,118500.0,0.80458754]
[1754992842808,0.3414469,118510.0,118500.0,0.79107754]
[1754992843409,0.3414469,118510.0,118500.0,0.1729391]
[1754992843601,0.3414469,118510.0,118500.0,0.78263668]
[1754992844911,0.257065,118510.0,118500.0,0.81318922]
[1754992845305,0.137615,118510.0,118500.0,1.11803801]
[1754992845609,0.161115,118510.0,118500.0,1.11803801]
[1754992846001,0.137615,118510.0,118500.0,1.11803801]
[1754992846204,0.161115,118510.0,118500.0,1.12653301]
[1754992846406,0.137615,118510.0,118500.0,1.12653301]
[1754992846605,0.161115,118510.0,118500.0,0.61809756]
[1754992848402,0.161115,118510.0,118500.0,0.6180398]
[1754992848911,0.137615,118510.0,118500.0,0.7868078]
[1754992849512,0.137615,118510.0,118500.0,0.7320478]
[1754992851709,0.137615,118510.0,118500.0,0.5632798]
[1754992855118,0.161205,118510.0,118500.0,0.5632798]
[1754992858013,0.161205,118510.0,118500.0,0.5422798]
[1754992868627,0.161205,118510.0,118500.0,1.04983055]
[1754992871027,0.171045,118510.0,118500.0,1.04983055]
[1754992871729,0.187375,118510.0,118500.0,1.04983055]
[1754992876634,0.201215,118510.0,118500.0,1.04983055]
[1754992879736,0.187375,118510.0,118500.0,1.04983055]
[1754992879932,0.161205,118510.0,118500.0,1.04983055]
[1754992880333,0.161205,118510.0,118500.0,1.96349222]
[1754992881139,0.08174547,118530.0,118510.0,0.1687536]
[1754992881337,0.03896,118520.0,118510.0,0.48878137]
[1754992881532,0.03896,118520.0,118510.0,1.25778137]
[1754992882041,0.03896,118520.0,118510.0,1.28833137]
[1754992882440,0.03896,118520.0,118510.0,2.20299304]
[1754992882937,0.03896,118520.0,118510.0,2.20399304]
[1754992883244,0.06173,118520.0,118510.0,1.89943915]
[1754992883538,0.06173,118520.0,118510.0,1.89843915]
[1754992883741,0.06473,118520.0,118510.0,1.89943915]
[1754992884340,0.193345,118520.0,118510.0,1.89943915]
[1754992884939,0.194345,118520.0,118510.0,1.89843915]
[1754992894644,0.179985,118520.0,118510.0,0.3947282]
[1754992894846,0.88782798,118520.0,118510.0,0.0853823]
[1754992895051,0.88782798,118520.0,118510.0,1.15881619]
[1754992895348,0.58327409,118520.0,118510.0,0.8542623]
[1754992895552,0.58327409,118520.0,118510.0,1.15881619]
[1754992896744,0.58327409,118520.0,118510.0,0.30555389]
[1754992896940,0.88782798,118520.0,118510.0,0.001]
[1754992897952,0.58327409,118520.0,118510.0,0.30555389]
[1754992898154,0.2787202,118520.0,118510.0,0.30555389]
[1754992898353,0.58327409,118520.0,118510.0,0.30555389]
[1754992898655,0.68500025,118520.0,118510.0,0.001]
[1754992899455,0.68500025,118520.0,118510.0,0.0853823]
[1754992901657,0.2787202,118520.0,118510.0,0.0853823]
[1754992901861,0.2787202,118520.0,118510.0,0.49166235]
[1754992902052,0.2787202,118520.0,118510.0,0.54787235]
[1754992904054,0.2787202,118520.0,118510.0,0.1415923]
[1754992904358,0.2787202,118520.0,118510.0,0.54787235]
[1754992904654,0.2787202,118520.0,118510.0,0.56466263]
[1754992906455,0.132615,118520.0,118510.0,0.56466263]
[1754992906663,0.2633302,118520.0,118510.0,0.56466263]
[1754992906852,0.2787202,118520.0,118510.0,0.56466263]
[1754992907962,0.2787202,118520.0,118510.0,0.54787235]
[1754992910062,0.132615,118520.0,118510.0,0.54787235]
[1754992911756,0.132615,118520.0,118510.0,0.9541524]
[1754992911964,0.132615,118520.0,118510.0,0.54787235]
[1754992912263,0.2169902,118520.0,118510.0,0.54787235]
[1754992912464,0.132615,118520.0,118510.0,0.54787235]
[1754992913467,0.132615,118520.0,118510.0,0.9541524]
[1754992913666,0.132615,118520.0,118510.0,0.54787235]
[1754992914263,0.132615,118520.0,118510.0,0.9541524]
[1754992914458,0.132615,118520.0,118510.0,0.54787235]
[1754992916064,0.2650502,118520.0,118510.0,0.54787235]
[1754992916264,0.2791702,118520.0,118510.0,1.31667235]
[1754992918057,0.194795,118520.0,118510.0,1.31667235]
[1754992918259,0.132615,118520.0,118510.0,1.31667235]
[1754992918766,0.132615,118520.0,118510.0,1.7229524]
[1754992919264,0.132615,118520.0,118510.0,1.31667235]
[1754992919662,0.132615,118520.0,118510.0,1.7229524]
[1754992920469,0.132615,118520.0,118510.0,1.31667235]
[1754992921770,0.2791702,118520.0,118510.0,0.9103523]
[1754992921966,0.2791702,118520.0,118510.0,1.31663235]